Workbook

Sheet Global
A1: ORÇAMENTO GLOBAL
A4: MUNICÍPIO: | C4: PALMITOS / SC
A5: PROJETO: | C5: ADEQUAÇÕES E REFORMA DO TERMINAL RODOVIÁRIO ATILIO BRIDI
A6: LOCAL: | C6: RUA LAURO MÜLLER
A7: ÁREA: | C7: 23,88 m² | G7: 23
A9: Item | B9: Código | C9: Custo R$ | D9: Discriminação | E9: Quant. | F9: Un | G9: Custo | H9: Valor total | I9: Total
B10: SINAPI | C10: SINAPI | G10: (R$) | H10: (R$) | I10: (R$)
A12: 1 | D12: FUNDAÇÃO EM SAPATAS
A14: 1.1 | B14: 83338 S. | C14: 2.22 | D14: Escavação mecânica a céu aberto com escavadeira hidráulica | E14: 6.72 | F14: m³ | G14: =ROUND((($G$7/100)+1)*C14,2) -> 2.73 | H14: =E14*G14 -> 18.35
A15: 1.2 | B15: 93361 S. | C15: 11.55 | D15: Reaterro mecanizado de vala com compactação | E15: 5.38 | F15: m³ | G15: 14.21 | H15: 76.45
A16: 1.3 | B16: 74078/001 S. | C16: 28.22 | D16: Agulhamento de fundo de valas c/ maco 30 Kg - pedra de mão H = 10 cm | E16: 4.48 | F16: m² | G16: 34.71 | H16: 155.5
A17: 1.4 | B17: 95241 S. | C17: 20.03 | D17: Lastro de concreto, espessura 5 cm, preparo mecânico, inclusos - Lançamento e Adensamento | E17: 4.48 | F17: m² | G17: 24.64 | H17: 110.39
A18: 1.5 | B18: 92720 S. | C18: 278 | D18: Concretagem, fck 25 Mpa, com uso de bomba em edificações - Lançamento, Adensamento e Acabamento | E18: 1.34 | F18: m³ | G18: 341.94 | H18: =E18*G18 -> 458.2
A19: 1.6 | B19: 92803 S. | C19: 4.31 | D19: Corte e dobra de aço CA-50, diâmetro de 10.0 mm | E19: 66 | F19: Kg | G19: 5.3 | H19: 349.8
D21: Total do item........................................................................................................................................................ | I21: =ROUND(SUM(H14:H19),2) -> 1168.69
A22: 2 | D22: SUPERESTRUTURA EM CONCRETO ARMADO
A24: 2.1 | B24: 92720 S. | C24: 278 | D24: Concretagem, fck 25 Mpa, com uso de bomba em edificações - Lançamento, Adensamento e Acabamento - Pilares; Vigas; Lajes | E24: 5.2 | F24: m³ | G24: =ROUND((($G$7/100)+1)*C24,2) -> 341.94 | H24: =E24*G24 -> 1778.09
A25: 2.2 | B25: 92270 S. | C25: 49 | D25: Fabricação de formas para vigas, em chapa de madeira serrada E = 25 mm | E25: 42 | F25: m² | G25: =ROUND((($G$7/100)+1)*C25,2) -> 60.27 | H25: =E25*G25 -> 2531.34
A26: 2.3 | B26: 92269 S. | C26: 59 | D26: Fabricação de formas para pilares, em chapa de madeira serrada E = 25 mm | E26: 37 | F26: m² | G26: =ROUND((($G$7/100)+1)*C26,2) -> 72.57 | H26: =E26*G26 -> 2685.09
A27: 2.4 | B27: 92271 S. | C27: 37 | D27: Fabricação de formas para lajes, em chapa de madeira serrada E = 25 mm | E27: 8 | F27: m² | G27: =ROUND((($G$7/100)+1)*C27,2) -> 45.51 | H27: =E27*G27 -> 364.08
A28: 2.5 | B28: 92800 S. | C28: 4.96 | D28: Corte e dobra de aço CA-60, diâmetro de 5.0 mm | E28: 95 | F28: Kg | G28: 6.1 | H28: 579.5
A29: 2.6 | B29: 92801 S. | C29: 4.73 | D29: Corte e dobra de aço CA-50, diâmetro de 6.3 mm | E29: 7 | F29: Kg | G29: 5.82 | H29: =E29*G29 -> 40.74
A30: 2.7 | B30: 92802 S. | C30: 5.16 | D30: Corte e dobra de aço CA-50, diâmetro de 8.0 mm | E30: 48 | F30: Kg | G30: 6.35 | H30: 304.8
A31: 2.8 | B31: 92803 S. | C31: 4.31 | D31: Corte e dobra de aço CA-50, diâmetro de 10.0 mm | E31: 305 | F31: Kg | G31: 5.3 | H31: 1616.5
A32: 2.9 | B32: 92804 S. | C32: 4.04 | D32: Corte e dobra de aço CA-50, diâmetro de 12.5 mm | E32: 24 | F32: Kg | G32: 4.97 | H32: =E32*G32 -> 119.28
D34: Total do item........................................................................................................................................................ | I34: =SUM(H24:H32) -> 10019.42
D36: TOTAL GERAL DA OBRA............................................................................................................................................................. | H36: =SUM(I21:I34) -> 11188.11
A38: MARAVILHA (SC), 20 de SETEMBRO de 2018.
A40: S = Tabela SINAPI (Sintética)
A41: I = Tabela SINAPI (Insumos)
A42: D = Tabela DNIT
D46: ____________________________________________________________________
D47: Rafael Cassol Basso
D48: Engenheiro Civil - Amerios - CREA/SC 112.213-2
A50: Observações:
A51: - O valor do material e mão de obra foi obtida através da tabela do SINAPI - Julho/2018 - Com Desoneração
A52: - CUB de referência: Setembro/2018 = | D52: 1817.09
A53: - Custo total da obra = | D53: =H36/D52 -> 6.16
A54: - O BDI considerado foi de | D54: =G7 -> 23
